fUST/lending_fUST_20250806
["ID","MTS","AMOUNT","RATE_DAILY","PERIOD"]
[377486514,1754427056116,-649.75,0.00028493,2]
[377486515,1754427056126,-460.0,0.00028493,2]
[377486516,1754427056135,-460.0,0.00028493,2]
[377486517,1754427056145,-460.0,0.00028493,2]
[377486518,1754427056154,-460.0,0.00028493,2]
[377486519,1754427056165,-1403.94,0.00028493,2]
[377486520,1754427056174,-460.0,0.00028493,2]
[377486521,1754427056184,-460.0,0.00028493,2]
[377486522,1754427056193,-460.0,0.00028493,2]
[377486523,1754427056203,-460.0,0.00028493,2]
[377486524,1754427056211,-537.0277846,0.00028493,2]
[377486525,1754427056221,-460.0,0.00028493,2]
[377486526,1754427056230,-460.0,0.00028493,2]
[377486527,1754427056239,-460.0,0.00028493,2]
[377486528,1754427056248,-460.0,0.00028493,2]
[377486529,1754427056257,-460.0,0.00028493,2]
[377486530,1754427056266,-460.0,0.00028493,2]
[377486531,1754427056275,-811.93,0.00028493,2]
[377486532,1754427056284,-1775.82,0.00028493,2]
[377486533,1754427056293,-460.0,0.00028493,2]
[377486534,1754427056302,-460.0,0.00028493,2]
[377486535,1754427056310,-460.0,0.00028493,2]
[377486536,1754427056319,-460.0,0.00028493,2]
[377486537,1754427056328,-460.0,0.00028493,2]
[377486538,1754427056337,-460.0,0.00028493,2]
[377486539,1754427056346,-460.0,0.00028493,2]
[377486540,1754427056355,-460.0,0.00028493,2]
[377486541,1754427056364,-460.0,0.00028493,2]
[377486542,1754427056373,-460.0,0.00028493,2]
[377486543,1754427056382,-460.0,0.00028493,2]
[377486544,1754427056392,-460.0,0.00028493,2]
[377486545,1754427056402,-468.23,0.00028493,2]
[377486546,1754427056410,-460.0,0.00028493,2]
[377486547,1754427056419,-460.0,0.00028493,2]
[377486548,1754427056428,-460.0,0.00028493,2]
[377486549,1754427056437,-460.0,0.00028493,2]
[377486550,1754427056446,-460.0,0.00028493,2]
[377486551,1754427056455,-460.0,0.00028493,2]
[377486552,1754427056464,-460.0,0.00028493,2]
[377486553,1754427056473,-471.28718924,0.00028493,2]
[377486554,1754427056482,-466.11556657,0.00028493,2]
[377486555,1754427056491,-460.0,0.00028493,2]
[377486556,1754427056500,-460.0,0.00028493,2]
[377486557,1754427056510,-460.0,0.00028493,2]
[377486558,1754427056519,-460.0,0.00028493,2]
[377486559,1754427056527,-460.0,0.00028493,2]
[377486560,1754427056536,-460.0,0.00028493,2]
[377486561,1754427056545,-460.0,0.00028493,2]
[377486562,1754427056558,-460.0,0.00028493,2]
[377486563,1754427056566,-460.0,0.00028493,2]
[377486564,1754427056575,-460.0,0.00028493,2]
[377486565,1754427056584,-460.0,0.00028493,2]
[377486566,1754427056593,-460.0,0.00028493,2]
[377486567,1754427056602,-460.0,0.00028493,2]
[377486568,1754427056610,-460.0,0.00028493,2]
[377486569,1754427056620,-460.0,0.00028493,2]
[377486570,1754427056629,-1472.16,0.00028493,2]
[377486571,1754427056638,-460.0,0.00028493,2]
[377486572,1754427056647,-274.87708,0.00028493,7]
[377486573,1754427056657,-460.0,0.00028493,2]
[377486574,1754427056667,-460.0,0.00028493,2]
[377486575,1754427056747,-151.0,0.00028493,7]
[377486576,1754427056766,-460.0,0.00028493,2]
[377486577,1754427056775,-460.0,0.00028493,2]
[377486578,1754427056783,-465.54654901,0.00028493,2]
[377486579,1754427056792,-460.0,0.00028493,2]
[377486580,1754427056802,-2393.83,0.00028493,2]
[377486581,1754427056811,-2484.66,0.00028493,2]
[377486582,1754427056821,-460.0,0.00028493,2]
[377486583,1754427056830,-460.0,0.00028493,2]
[377486584,1754427056838,-460.0,0.00028493,2]
[377486585,1754427056847,-460.0,0.00028493,2]
[377486586,1754427056856,-502.01,0.00028493,2]
[377486587,1754427056865,-460.0,0.00028493,2]
[377486588,1754427056874,-460.0,0.00028493,2]
[377486589,1754427056883,-1077.28,0.00028493,2]
[377486590,1754427056891,-70513.24,0.00028493,2]
[377486591,1754427056900,-1431.97,0.00028493,2]
[377486592,1754427056909,-460.0,0.00028493,2]
[377486593,1754427056918,-460.0,0.00028493,2]
[377486594,1754427056926,-915.89,0.00028493,2]
[377486595,1754427056935,-1250.29,0.00028493,2]
[377486596,1754427056944,-460.0,0.00028493,2]
[377486597,1754427056953,-460.0,0.00028493,2]
[377486598,1754427056962,-460.0,0.00028493,2]
[377486599,1754427056971,-460.0,0.00028493,2]
[377486600,1754427056980,-460.0,0.00028493,2]
[377486601,1754427056989,-606.84,0.00028493,2]
[377486602,1754427056998,-460.0,0.00028493,2]
[377486603,1754427057007,-460.0,0.00028493,2]
[377486604,1754427057015,-460.0,0.00028493,2]
[377486605,1754427057024,-1028.3,0.00028493,2]
[377486606,1754427057033,-914.04,0.00028493,2]
[377486607,1754427057042,-841.56,0.00028493,2]
[377486608,1754427057051,-460.0,0.00028493,2]
[377486609,1754427057060,-1593.91,0.00028493,2]
[377486610,1754427057069,-460.0,0.00028493,2]
[377486611,1754427057078,-460.0,0.00028493,2]
[377486612,1754427057087,-460.0,0.00028493,2]
[377486613,1754427057098,-2254.97,0.00028493,2]
[377486614,1754427057107,-500.0,0.00028493,2]
[377486615,1754427057116,-460.0,0.00028493,2]
[377486616,1754427057125,-460.0,0.00028493,2]
[377486617,1754427057135,-460.0,0.00028493,2]
[377486618,1754427057144,-460.0,0.00028493,2]
[377486619,1754427057153,-460.0,0.00028493,2]
[377486620,1754427057163,-460.0,0.00028493,2]
[377486621,1754427057172,-460.0,0.00028493,2]
[377486622,1754427057181,-460.0,0.00028493,2]
[377486623,1754427057190,-460.0,0.00028493,2]
[377486624,1754427057199,-1438.56,0.00028493,2]
[377486625,1754427057208,-460.0,0.00028493,2]
[377486626,1754427057217,-774.78,0.00028493,2]
[377486627,1754427057228,-460.0,0.00028493,2]
[377486628,1754427057237,-468.73380115,0.00028493,2]
[377486629,1754427057246,-467.53378666,0.00028493,2]
[377486630,1754427057255,-151.0,0.00028493,7]
[377486631,1754427057265,-1081.48,0.00028493,2]
[377486632,1754427057274,-460.0,0.00028493,2]
[377486633,1754427057283,-460.0,0.00028493,2]
[377486634,1754427057292,-460.0,0.00028493,2]
[377486635,1754427057301,-274.52226462,0.00028493,2]
[377486636,1754427057311,-460.0,0.00028493,2]
[377486637,1754427057320,-1425.2,0.00028493,2]
[377486638,1754427057330,-868.91,0.00028493,2]
[377486639,1754427057339,-460.0,0.00028493,2]
[377486640,1754427057348,-500.0,0.00028493,5]
[377486641,1754427057357,-503.74,0.00028493,2]
[377486642,1754427057367,-1264.81,0.00028493,2]
[377486643,1754427057376,-500.0,0.00028493,2]
[377486644,1754427057386,-5004.65,0.00028493,2]
[377486645,1754427057396,-460.0,0.00028493,2]
[377486646,1754427057405,-5873.66,0.00028493,2]
[377486647,1754427057414,-460.0,0.00028493,2]
[377486648,1754427057424,-151.0,0.00028493,7]
[377486649,1754427057433,-460.0,0.00028493,2]
[377486650,1754427057442,-460.0,0.00028493,2]
[377486651,1754427057453,-460.0,0.00028493,2]
[377486652,1754427057462,-245.469738,0.00028493,7]
[377486653,1754427057472,-1295.15,0.00028493,2]
[377486654,1754427057481,-460.0,0.00028493,2]
[377486655,1754427057491,-460.0,0.00028493,2]
[377486656,1754427057500,-460.0,0.00028493,2]
[377486657,1754427057509,-460.0,0.00028493,2]
[377486658,1754427057519,-460.0,0.00028493,2]
[377486659,1754427057530,-460.0,0.00028493,2]
[377486660,1754427057539,-460.0,0.00028493,2]
[377486661,1754427057551,-460.0,0.00028493,2]
[377486662,1754427057560,-1259.02,0.00028493,2]
[377486663,1754427057569,-513.53,0.00028493,2]
[377486664,1754427057579,-460.0,0.00028493,2]
[377486665,1754427057588,-460.0,0.00028493,2]
[377486666,1754427057597,-460.0,0.00028493,2]
[377486667,1754427057607,-460.0,0.00028493,2]
[377486668,1754427057616,-497.333361,0.00028493,7]
[377486669,1754427057626,-460.0,0.00028493,2]
[377486670,1754427057636,-460.0,0.00028493,2]
[377486671,1754427057645,-460.0,0.00028493,2]
[377486672,1754427057655,-460.0,0.00028493,2]
[377486673,1754427057664,-497.333361,0.00028493,7]
[377486674,1754427057674,-460.0,0.00028493,2]
[377486675,1754427057685,-460.0,0.00028493,2]
[377486676,1754427057695,-460.0,0.00028493,2]
[377486677,1754427057705,-467.12078335,0.00028493,2]
[377486678,1754427057714,-2544.7,0.00028493,2]
[377486679,1754427057725,-1712.627473,0.00028493,7]
[377486680,1754427057735,-1712.627473,0.00028493,7]
[377486681,1754427057744,-460.0,0.00028493,2]
[377486682,1754427057754,-151.0,0.00028493,7]
[377486683,1754427057764,-464.26118888,0.00028493,2]
[377486684,1754427057773,-1659.54,0.00028493,2]
[377486685,1754427057783,-460.0,0.00028493,2]
[377486686,1754427057792,-460.0,0.00028493,2]
[377486687,1754427057802,-215.698158,0.00028493,7]
[377486688,1754427057812,-1847.96,0.00028493,2]
[377486689,1754427057822,-751.14,0.00028493,2]
[377486690,1754427057831,-859.85,0.00028493,2]
[377486691,1754427057841,-151.0,0.00028493,7]
[377486692,1754427057851,-460.0,0.00028493,2]
[377486693,1754427057860,-460.0,0.00028493,2]
[377486694,1754427057869,-460.0,0.00028493,2]
[377486695,1754427057879,-6456.97,0.00028493,2]
[377486696,1754427057888,-478.49,0.00028493,2]
[377486697,1754427057898,-2913.77,0.00028493,2]
[377486698,1754427057907,-464.84,0.00028493,2]
[377486699,1754427057917,-460.0,0.00028493,2]
[377486700,1754427057926,-643.1,0.00028493,2]
[377486701,1754427057936,-460.0,0.00028493,2]
[377486702,1754427057945,-822.24,0.00028493,2]
[377486703,1754427057955,-673.92,0.00028493,2]
[377486704,1754427057965,-460.0,0.00028493,2]
[377486705,1754427057975,-460.0,0.00028493,2]
[377486706,1754427057985,-460.0,0.00028493,2]
[377486707,1754427057994,-460.0,0.00028493,2]
[377486708,1754427058003,-460.0,0.00028493,2]
[377486709,1754427058013,-465.33961852,0.00028493,2]
[377486710,1754427058022,-460.0,0.00028493,2]
[377486711,1754427058032,-1205.26,0.00028493,2]
[377486712,1754427058042,-375.1766706,0.00028493,2]
[377486713,1754427058051,-460.0,0.00028493,2]
[377486714,1754427058060,-1335.72,0.00028493,2]
[377486715,1754427058070,-1686.93,0.00028493,2]
[377486716,1754427058080,-460.0,0.00028493,2]
[377486717,1754427058089,-460.0,0.00028493,2]
[377486718,1754427058099,-460.0,0.00028493,2]
[377486719,1754427058108,-460.0,0.00028493,2]
[377486720,1754427058118,-460.0,0.00028493,2]
[377486721,1754427058127,-1894.52,0.00028493,2]
[377486722,1754427058136,-460.0,0.00028493,2]
[377486723,1754427058146,-655.64,0.00028493,2]
[377486724,1754427058155,-582.79929482,0.00028493,2]
[377486725,1754427058164,-460.0,0.00028493,2]
[377486726,1754427058173,-460.0,0.00028493,2]
[377486727,1754427058183,-460.0,0.00028493,2]
[377486728,1754427058192,-506.31927887,0.00028493,2]
[377486729,1754427058278,-659.36,0.00028493,2]
[377486730,1754427058287,-460.0,0.00028493,2]
[377486731,1754427058297,-460.0,0.00028493,2]
[377486732,1754427058306,-460.0,0.00028493,2]
[377486733,1754427058315,-973.04,0.00028493,2]
[377486734,1754427058324,-460.0,0.00028493,2]
[377486735,1754427058334,-460.0,0.00028493,2]
[377486736,1754427058343,-2351.0,0.00028536,2]
[377486737,1754427058352,-228.47,0.00028539,15]
[377486738,1754427058361,-461.15695721,0.00028579,2]
[377486739,1754427058371,-160.0,0.00028579,2]
[377486740,1754427058380,-228.47,0.00028639,15]
[377486741,1754427058391,-160.0,0.00028707,2]
[377486742,1754427058400,-160.0,0.00028707,2]
[377486743,1754427058409,-160.0,0.00028707,2]
[377486744,1754427058418,-842.25606042,0.00028707,2]
[377486745,1754427058427,-160.0,0.00028707,2]
[377486746,1754427058437,-160.0,0.00028707,2]
[377486747,1754427058446,-216.4206905,0.00028707,2]
[377486748,1754427058456,-12655.02535889,0.00028707,2]
[377486749,1754427058465,-228.47,0.00028739,15]
[377486750,1754427058474,-260.0,0.00028758,2]
[377486751,1754427058484,-460.0,0.00028767,2]
[377486752,1754427058496,-460.0,0.00028767,2]
[377486753,1754427058505,-518.68,0.00028767,2]
[377486754,1754427058514,-522.68,0.00028767,2]
[377486755,1754427058523,-460.0,0.00028767,2]
[377486756,1754427058533,-532.24,0.00028767,2]
[377486757,1754427058542,-460.0,0.00028767,2]
[377486758,1754427058555,-460.0,0.00028767,2]
[377486759,1754427058565,-460.0,0.00028767,2]
[377486760,1754427058574,-465.08567592,0.00028767,2]
[377486761,1754427058583,-1254.3,0.00028767,2]
[377486762,1754427058595,-460.0,0.00028767,2]
[377486763,1754427058605,-460.0,0.00028767,2]
[377486764,1754427058614,-460.0,0.00028767,2]
[377486765,1754427058624,-283.22179,0.00028767,2]
[377486766,1754427058633,-460.0,0.00028767,2]
[377486767,1754427058642,-460.0,0.00028767,2]
[377486768,1754427058651,-649.75,0.00028767,2]
[377486769,1754427058661,-460.0,0.00028767,2]
[377486770,1754427058670,-463.49054698,0.00028767,2]
[377486771,1754427058679,-460.0,0.00028767,2]
[377486772,1754427058688,-1403.94,0.00028767,2]
[377486773,1754427058697,-460.0,0.00028767,2]
[377486774,1754427058707,-460.0,0.00028767,2]
[377486775,1754427058717,-460.0,0.00028767,2]
[377486776,1754427058727,-218.13481286,0.00028767,2]
[377486777,1754427058736,-460.0,0.00028767,2]
[377486778,1754427058745,-460.0,0.00028767,2]
[377486779,1754427058754,-419.08537142,0.00028767,2]
[377486780,1754427058764,-460.0,0.00028767,2]
[377486781,1754427058774,-460.0,0.00028767,2]
[377486782,1754427058783,-460.0,0.00028767,2]
[377486783,1754427058793,-811.93,0.00028767,2]
[377486784,1754427058807,-1775.82,0.00028767,2]
[377486785,1754427058822,-460.0,0.00028767,2]
[377486786,1754427058831,-460.0,0.00028767,2]
[377486787,1754427058840,-460.0,0.00028767,2]
[377486788,1754427058849,-206.15088004,0.00028767,2]
[377486789,1754427058858,-464.99348653,0.00028767,2]
[377486790,1754427058867,-460.0,0.00028767,2]
[377486791,1754427058876,-460.0,0.00028767,2]
[377486792,1754427058888,-460.0,0.00028767,2]
[377486793,1754427058897,-460.0,0.00028767,2]
[377486794,1754427058907,-460.0,0.00028767,2]
[377486795,1754427058916,-460.0,0.00028767,2]
[377486796,1754427058925,-340.0,0.00028767,2]
[377486797,1754427058935,-468.23,0.00028767,2]
[377486798,1754427058944,-460.0,0.00028767,2]
[377486799,1754427058953,-460.0,0.00028767,2]
[377486800,1754427058962,-460.0,0.00028767,2]
[377486801,1754427058973,-460.0,0.00028767,2]
[377486802,1754427058982,-460.0,0.00028767,2]
[377486803,1754427058991,-460.0,0.00028767,2]
[377486804,1754427059001,-460.0,0.00028767,2]
[377486805,1754427059010,-460.0,0.00028767,2]
[377486806,1754427059023,-460.0,0.00028767,2]
[377486807,1754427059032,-460.0,0.00028767,2]
[377486808,1754427059041,-460.0,0.00028767,2]
[377486809,1754427059051,-460.0,0.00028767,2]
[377486810,1754427059060,-460.0,0.00028767,2]
[377486811,1754427059069,-460.0,0.00028767,2]
[377486812,1754427059078,-460.0,0.00028767,2]
[377486813,1754427059088,-460.0,0.00028767,2]
[377486814,1754427059096,-460.0,0.00028767,2]
[377486815,1754427059106,-467.13404748,0.00028767,2]
[377486816,1754427059115,-460.0,0.00028767,2]
[377486817,1754427059124,-460.0,0.00028767,2]
[377486818,1754427059134,-1472.16,0.00028767,2]
[377486819,1754427059143,-460.0,0.00028767,2]
[377486820,1754427059152,-460.0,0.00028767,2]
[377486821,1754427059161,-460.0,0.00028767,2]
[377486822,1754427059171,-460.0,0.00028767,2]
[377486823,1754427059180,-460.0,0.00028767,2]
[377486824,1754427059189,-2484.66,0.00028767,2]
[377486825,1754427059199,-2393.83,0.00028767,2]
[377486826,1754427059208,-460.0,0.00028767,2]
[377486827,1754427059217,-460.0,0.00028767,2]
[377486828,1754427059228,-460.0,0.00028767,2]
[377486829,1754427059237,-460.0,0.00028767,2]
[377486830,1754427059247,-502.01,0.00028767,2]
[377486831,1754427059256,-460.0,0.00028767,2]
[377486832,1754427059265,-258.00359311,0.00028767,2]
[377486833,1754427059274,-1077.28,0.00028767,2]
[377486834,1754427059283,-70513.24,0.00028767,2]
[377486835,1754427059293,-1431.97,0.00028767,2]
[377486836,1754427059302,-465.19542519,0.00028767,2]
[377486837,1754427059311,-915.89,0.00028767,2]
[377486838,1754427059320,-1250.29,0.00028767,2]
[377486839,1754427059329,-460.0,0.00028767,2]
[377486840,1754427059338,-460.0,0.00028767,2]
[377486841,1754427059347,-460.0,0.00028767,2]
[377486842,1754427059357,-460.0,0.00028767,2]
[377486843,1754427059366,-606.84,0.00028767,2]
[377486844,1754427059375,-460.0,0.00028767,2]
[377486845,1754427059385,-460.0,0.00028767,2]
[377486846,1754427059394,-1028.3,0.00028767,2]
[377486847,1754427059404,-914.04,0.00028767,2]
[377486848,1754427059414,-841.56,0.00028767,2]
[377486849,1754427059423,-460.0,0.00028767,2]
[377486850,1754427059432,-1593.91,0.00028767,2]
[377486851,1754427059441,-460.0,0.00028767,2]
[377486852,1754427059450,-2254.97,0.00028767,2]
[377486853,1754427059459,-500.0,0.00028767,2]
[377486854,1754427059468,-460.0,0.00028767,2]
[377486855,1754427059480,-460.0,0.00028767,2]
[377486856,1754427059489,-317.07535462,0.00028767,2]
[377486857,1754427059498,-460.0,0.00028767,2]
[377486858,1754427059507,-460.0,0.00028767,2]
[377486859,1754427059517,-460.0,0.00028767,2]
[377486860,1754427059526,-221.54304821,0.00028767,2]
[377486861,1754427059535,-1438.56,0.00028767,2]
[377486862,1754427059545,-460.0,0.00028767,2]
[377486863,1754427059559,-774.78,0.00028767,2]
[377486864,1754427059568,-460.0,0.00028767,2]
[377486865,1754427059578,-1081.48,0.00028767,2]
[377486866,1754427059587,-460.0,0.00028767,2]
[377486867,1754427059597,-460.0,0.00028767,2]
[377486868,1754427059606,-460.0,0.00028767,2]
[377486869,1754427059694,-1425.2,0.00028767,2]
[377486870,1754427059704,-868.91,0.00028767,2]
[377486871,1754427059714,-444.5046586,0.00028767,2]
[377486872,1754427059724,-500.0,0.00028767,5]
[377486873,1754427059734,-503.74,0.00028767,2]
[377486874,1754427059743,-500.0,0.00028767,2]
[377486875,1754427059756,-1264.81,0.00028767,2]
[377486876,1754427059765,-5004.65,0.00028767,2]
[377486877,1754427059775,-460.0,0.00028767,2]
[377486878,1754427059784,-460.0,0.00028767,2]
[377486879,1754427059794,-5873.66,0.00028767,2]
[377486880,1754427059803,-460.0,0.00028767,2]
[377486881,1754427059814,-460.0,0.00028767,2]
[377486882,1754427059825,-460.0,0.00028767,2]
[377486883,1754427059837,-1295.15,0.00028767,2]
[377486884,1754427059848,-460.0,0.00028767,2]
[377486885,1754427059857,-460.0,0.00028767,2]
[377486886,1754427059868,-460.0,0.00028767,2]
[377486887,1754427059880,-270.20706565,0.00028767,2]
[377486888,1754427059890,-460.0,0.00028767,2]
[377486889,1754427059900,-1259.02,0.00028767,2]
[377486890,1754427059909,-513.53,0.00028767,2]
[377486891,1754427059919,-368.85783368,0.00028767,2]
[377486892,1754427059928,-460.0,0.00028767,2]
[377486893,1754427059938,-460.0,0.00028767,2]
[377486894,1754427059948,-460.0,0.00028767,2]
[377486895,1754427059958,-460.0,0.00028767,2]
[377486896,1754427059968,-460.0,0.00028767,2]
[377486897,1754427059979,-460.0,0.00028767,2]
[377486898,1754427059989,-460.0,0.00028767,2]
[377486899,1754427059999,-460.0,0.00028767,2]
[377486900,1754427060009,-2544.7,0.00028767,2]
[377486901,1754427060019,-460.0,0.00028767,2]
[377486902,1754427060030,-460.0,0.00028767,2]
[377486903,1754427060039,-1659.54,0.00028767,2]
[377486904,1754427060049,-460.0,0.00028767,2]
[377486905,1754427060059,-1847.96,0.00028767,2]
[377486906,1754427060069,-751.14,0.00028767,2]
[377486907,1754427060079,-859.85,0.00028767,2]
[377486908,1754427060088,-460.0,0.00028767,2]
[377486909,1754427060098,-460.0,0.00028767,2]
[377486910,1754427060107,-460.0,0.00028767,2]
[377486911,1754427060117,-6456.97,0.00028767,2]
[377486912,1754427060126,-478.49,0.00028767,2]
[377486913,1754427060135,-2913.77,0.00028767,2]
[377486914,1754427060145,-464.84,0.00028767,2]
[377486915,1754427060154,-483.53797526,0.00028767,2]
[377486916,1754427060164,-643.1,0.00028767,2]
[377486917,1754427060174,-460.0,0.00028767,2]
[377486918,1754427060184,-822.24,0.00028767,2]
[377486919,1754427060194,-673.92,0.00028767,2]
[377486920,1754427060203,-460.0,0.00028767,2]
[377486921,1754427060213,-168.28342658,0.00028767,2]
[377486922,1754427060222,-460.0,0.00028767,2]
[377486923,1754427060232,-460.0,0.00028767,2]
[377486924,1754427060241,-460.0,0.00028767,2]
[377486925,1754427060251,-1205.26,0.00028767,2]
[377486926,1754427060260,-460.0,0.00028767,2]
[377486927,1754427060269,-1335.72,0.00028767,2]
[377486928,1754427060279,-1686.93,0.00028767,2]
[377486929,1754427060289,-460.0,0.00028767,2]
[377486930,1754427060298,-460.0,0.00028767,2]
[377486931,1754427060308,-460.0,0.00028767,2]
[377486932,1754427060317,-461.69525378,0.00028767,2]
[377486933,1754427060327,-1894.52,0.00028767,2]
[377486934,1754427060336,-460.0,0.00028767,2]
[377486935,1754427060346,-655.64,0.00028767,2]
[377486936,1754427060355,-460.0,0.00028767,2]
[377486937,1754427060365,-460.0,0.00028767,2]
[377486938,1754427060375,-659.36,0.00028767,2]
[377486939,1754427060386,-460.0,0.00028767,2]
[377486940,1754427060395,-460.0,0.00028767,2]
[377486941,1754427060405,-973.04,0.00028767,2]
[377486942,1754427060416,-464.23388928,0.00028767,2]
[377486943,1754427060425,-1000.0,0.00028768,5]
[377486944,1754427060434,-312.16666667,0.00028777,2]
[377486945,1754427060443,-527.3554621,0.00028777,2]
[377486946,1754427060453,-200.0,0.00028821,5]
[377486947,1754427060462,-160.0,0.00028828,2]
[377486948,1754427060472,-215.21874788,0.00028828,2]
[377486949,1754427060483,-160.0,0.00028828,2]
[377486950,1754427060494,-160.0,0.00028828,2]
[377486951,1754427060504,-228.47,0.00028839,15]
[377486952,1754427060513,-151.0,0.00028913,2]
[377486953,1754427060522,-23009.51934145,0.00028913,2]
[377486954,1754427060531,-228.47,0.00028939,15]
[377486955,1754427060541,-216.4206905,0.00029,10]
[377486956,1754427060554,-312.16666667,0.00029,10]
[377486957,1754427060563,-842.25606042,0.00029,10]
[377486958,1754427060572,-200.0,0.00029008,15]
[377486959,1754427060581,-200.0,0.00029008,15]
[377486960,1754427060591,-300.0,0.00029008,15]
[377486961,1754427060600,-2000.0,0.00029016,2]
[377486962,1754427060611,-300.0,0.00029016,5]
[377486963,1754427060620,-500.0,0.00029016,5]
[377486964,1754427060631,-2000.0,0.00029016,5]
[377486965,1754427060641,-521.3620583,0.00029016,5]
[377486966,1754427060650,-1500.0,0.00029016,5]
[377486967,1754427060660,-2000.0,0.00029016,5]
[377486968,1754427060669,-505.17341474,0.00029016,5]
[377486969,1754427060678,-1000.0,0.00029016,5]
[377486970,1754427060687,-2000.0,0.00029016,5]
[377486971,1754427060697,-2000.0,0.00029016,2]
[377486972,1754427060708,-228.47,0.00029039,15]
[377486973,1754427060718,-460.0,0.00029041,2]
[377486974,1754427060728,-271.4,0.00029041,2]
[377486975,1754427060737,-518.68,0.00029041,2]
[377486976,1754427060746,-522.68,0.00029041,2]
[377486977,1754427060755,-460.0,0.00029041,2]
[377486978,1754427060764,-532.24,0.00029041,2]
[377486979,1754427060773,-460.0,0.00029041,2]
[377486980,1754427060783,-460.0,0.00029041,2]
[377486981,1754427060792,-1254.3,0.00029041,2]
[377486982,1754427060802,-460.0,0.00029041,2]
[377486983,1754427060811,-460.0,0.00029041,2]
[377486984,1754427060820,-508.39355586,0.00029041,2]
[377486985,1754427060829,-460.0,0.00029041,2]
[377486986,1754427060839,-460.0,0.00029041,2]
[377486987,1754427060849,-649.75,0.00029041,2]
[377486988,1754427060858,-460.0,0.00029041,2]
[377486989,1754427060867,-460.0,0.00029041,2]
[377486990,1754427060877,-1403.94,0.00029041,2]
[377486991,1754427060887,-460.0,0.00029041,2]
[377486992,1754427060896,-346.9539371,0.00029041,2]
[377486993,1754427060905,-460.0,0.00029041,2]
[377486994,1754427060915,-460.0,0.00029041,2]
[377486995,1754427060924,-460.0,0.00029041,2]
[377486996,1754427060934,-460.0,0.00029041,2]
[377486997,1754427060944,-468.13077803,0.00029041,2]
[377486998,1754427060953,-811.93,0.00029041,2]
[377486999,1754427061034,-1775.82,0.00029041,2]
[377487000,1754427061044,-532.99793358,0.00029041,2]
[377487001,1754427061054,-460.0,0.00029041,2]
[377487002,1754427061062,-460.0,0.00029041,2]
[377487003,1754427061072,-460.0,0.00029041,2]
[377487004,1754427061082,-460.0,0.00029041,2]
[377487005,1754427061094,-537.04959343,0.00029041,2]
[377487006,1754427061105,-460.0,0.00029041,2]
[377487007,1754427061116,-468.23,0.00029041,2]
[377487008,1754427061126,-460.0,0.00029041,2]
[377487009,1754427061135,-460.0,0.00029041,2]
[377487010,1754427061146,-460.0,0.00029041,2]
[377487011,1754427061158,-460.0,0.00029041,2]
[377487012,1754427061167,-460.0,0.00029041,2]
[377487013,1754427061176,-460.0,0.00029041,2]